lending/lending_fUSD_20240604
["ID","MTS","AMOUNT","RATE_DAILY","PERIOD"]
[328513205,1717471955213,-500.0,0.00029589,6]
[328513206,1717471955222,-162.94305432,0.00029589,6]
[328513207,1717471955232,-500.0,0.00029589,6]
[328513208,1717471955241,-500.0,0.00029589,6]
[328513209,1717471955250,-500.0,0.00029589,6]
[328513210,1717471955260,-3342.69,0.00029589,6]
[328513211,1717471955269,-500.0,0.00029589,6]
[328513212,1717471955279,-601.79,0.00029589,6]
[328513213,1717471955288,-509.79,0.00029589,6]
[328513214,1717471955298,-500.0,0.00029589,6]
[328513215,1717471955307,-500.0,0.00029589,6]
[328513216,1717471955316,-8825.84,0.00029589,6]
[328513217,1717471955325,-3342.69,0.00029589,6]
[328513218,1717471955335,-500.0,0.00029589,6]
[328513219,1717471955344,-601.79,0.00029589,6]
[328513220,1717471955353,-500.0,0.00029589,6]
[328513221,1717471955362,-509.79,0.00029589,6]
[328513222,1717471955371,-8825.84,0.00029589,6]
[328513223,1717471955381,-500.0,0.00029589,6]
[328513224,1717471955391,-3342.69,0.00029589,6]
[328513225,1717471955400,-500.0,0.00029589,6]
[328513226,1717471955409,-500.0,0.00029589,6]
[328513227,1717471955421,-535.54782353,0.00029589,6]
[328513228,1717471955430,-601.79,0.00029589,6]
[328513229,1717471955439,-500.0,0.00029589,6]
[328513230,1717471955448,-509.79,0.00029589,6]
[328513231,1717471955457,-500.0,0.00029589,6]
[328513232,1717471955467,-500.0,0.00029589,6]
[328513233,1717471955478,-500.0,0.00029589,6]
[328513234,1717471955487,-3342.69,0.00029589,6]
[328513235,1717471955497,-506.99868316,0.00029589,6]
[328513236,1717471955508,-500.0,0.00029589,6]
[328513237,1717471955517,-500.0,0.00029589,6]
[328513238,1717471955526,-500.0,0.00029589,6]
[328513239,1717471955537,-500.0,0.00029589,6]
[328513240,1717471955546,-509.79,0.00029589,6]
[328513241,1717471955555,-500.0,0.00029589,6]
[328513242,1717471955564,-500.0,0.00029589,6]
[328513243,1717471955574,-500.0,0.00029589,6]
[328513244,1717471955583,-500.0,0.00029589,6]
[328513245,1717471955592,-8825.84,0.00029589,6]
[328513246,1717471955602,-3342.69,0.00029589,6]
[328513247,1717471955611,-500.0,0.00029589,6]
[328513248,1717471955620,-500.0,0.00029589,6]
[328513249,1717471955630,-601.79,0.00029589,6]
[328513250,1717471955639,-500.0,0.00029589,6]
[328513251,1717471955650,-500.0,0.00029589,6]
[328513252,1717471955659,-500.0,0.00029589,6]
[328513253,1717471955669,-509.79649938,0.00029589,6]
[328513254,1717471955678,-500.0,0.00029589,6]
[328513255,1717471955687,-500.0,0.00029589,6]
[328513256,1717471955696,-3342.69,0.00029589,6]
[328513257,1717471955705,-8825.84,0.00029589,6]
[328513258,1717471955715,-500.0,0.00029589,6]
[328513259,1717471955724,-601.79,0.00029589,6]
[328513260,1717471955733,-500.0,0.00029589,6]
[328513261,1717471955743,-500.0,0.00029589,6]
[328513262,1717471955752,-500.0,0.00029589,6]
[328513263,1717471955762,-505.22712278,0.00029589,6]
[328513264,1717471955771,-3342.69,0.00029589,6]
[328513265,1717471955780,-500.0,0.00029589,6]
[328513266,1717471955791,-8825.84,0.00029589,6]
[328513267,1717471955800,-157.96729702,0.00029589,6]
[328513268,1717471955810,-500.0,0.00029589,6]
[328513269,1717471955822,-601.79,0.00029589,6]
[328513270,1717471955832,-500.0,0.00029589,6]
[328513271,1717471955842,-500.0,0.00029589,6]
[328513272,1717471955852,-231.18459439,0.00029589,6]
[328513273,1717471955862,-500.0,0.00029589,6]
[328513274,1717471955872,-500.0,0.00029589,2]
[328513275,1717471955882,-646.08459464,0.00029589,6]
[328513276,1717471955936,-2696.78607019,0.00029589,6]
[328513277,1717471955945,-500.0,0.00029589,6]
[328513278,1717471955954,-8825.84,0.00029589,6]
[328513279,1717471955965,-500.0,0.00029589,6]
[328513280,1717471955975,-601.79,0.00029589,6]
[328513281,1717471955986,-500.0,0.00029589,6]
[328513282,1717471955995,-500.0,0.00029589,6]
[328513283,1717471956005,-500.0,0.00029589,6]
[328513284,1717471956015,-500.0,0.00029589,2]
[328513285,1717471956024,-500.0,0.00029589,6]
[328513286,1717471956033,-8825.84,0.00029589,6]
[328513287,1717471956043,-500.0,0.00029589,6]
[328513288,1717471956052,-500.0,0.00029589,6]
[328513289,1717471956061,-601.79,0.00029589,6]
[328513290,1717471956070,-500.0,0.00029589,6]
[328513291,1717471956080,-502.55320572,0.00029589,6]
[328513292,1717471956089,-500.0,0.00029589,6]
[328513293,1717471956100,-500.0,0.00029589,2]
[328513294,1717471956113,-500.0,0.00029589,6]
[328513295,1717471956123,-510.35014856,0.00029589,6]
[328513296,1717471956132,-500.0,0.00029589,6]
[328513297,1717471956142,-8825.84,0.00029589,6]
[328513298,1717471956152,-500.0,0.00029589,6]
[328513299,1717471956161,-601.94335382,0.00029589,6]
[328513300,1717471956171,-500.0,0.00029589,6]
[328513301,1717471956182,-500.0,0.00029589,6]
[328513302,1717471956191,-500.0,0.00029589,6]
[328513303,1717471956202,-2834.90194783,0.00029589,2]
[328513304,1717471956211,-2834.90194783,0.00029589,2]
[328513305,1717471956220,-2834.90194783,0.00029589,2]
[328513306,1717471956230,-104446.78271025,0.00029589,2]
[328513307,1717471956240,-104446.78271025,0.00029589,2]
[328513308,1717471956249,-58136.13577041,0.00029589,2]
[328513309,1717471956425,-500.0,0.00029589,6]
[328513310,1717471956434,-262.78390343,0.00029589,6]
[328513311,1717471956986,-215.98243194,0.00029587,2]
[328513312,1717471956995,-190.14336709,0.00029587,2]
[328513313,1717471957006,-237.21609657,0.00029589,6]
[328513314,1717471957016,-4147.42028971,0.00029589,6]
[328513318,1717472122355,155.0,0.00010499,2]
[328513319,1717472138351,155.0,0.00010499,2]
[328513320,1717472154387,170.35382184,0.00010499,2]
[328513321,1717472176793,155.59648462,0.00010499,2]
[328513322,1717472208450,1257.94259682,0.0003,30]
[328513323,1717472324994,165.61614888,0.00031,90]
[328513325,1717472508355,152.81,0.00031,90]
[328513326,1717472539872,10000.0,0.000298,30]
[328513327,1717472539963,6071.19701894,0.000256,30]
[328513328,1717472554004,10000.0,0.0003,30]
[328513363,1717473031867,-415.255222,0.0001383,2]
[328513364,1717473031877,-298.89885699,0.000139,2]
[328513365,1717473031888,-6672.99154301,0.000139,2]
[328513366,1717473031897,-708.0523,0.000139,2]
[328513367,1717473031907,-327.1095,0.000139,2]
[328513368,1717473031916,-328.3690207,0.000139,2]
[328513369,1717473031925,-762.82130847,0.000139,2]
[328513370,1717473031935,-2071.19054044,0.000139,2]
[328513371,1717473031944,-158.06,0.0001399,2]
[328513372,1717473031954,-158.06,0.0001399,2]
[328513373,1717473031963,-158.06,0.0001399,2]
[328513374,1717473031972,-216695.85074641,0.00014,2]
[328513392,1717473037566,-199.60973745,0.000139,2]
[328513393,1717473037576,-4993.1269043,0.00014,2]
[328513394,1717473037675,-121318.84920849,0.00014,2]
[328513395,1717473037687,-1989.47898931,0.00014,2]
[328513396,1717473037836,-188054.29425939,0.00014,2]
[328513397,1717473037894,-1007.35457493,0.00014,2]
[328513398,1717473037906,-902.63081299,0.00014,2]
[328513409,1717473040184,-283.47181061,0.00014,2]
[328513410,1717473040196,-352.75909744,0.00014,2]
[328513411,1717473040985,-865.43927189,0.00014,2]
[328513412,1717473041039,-719.26763437,0.00014,2]
[328513465,1717473042868,-6920.00000002,0.00014,2]
[328513466,1717473042976,-1001.86486383,0.00014,2]
[328513469,1717473045704,-822.8558731,0.00014,2]
[328513470,1717473045759,-626.08111507,0.00014,2]
[328513471,1717473045813,-1661.2096208,0.00014,2]
[328513472,1717473045825,-6231.59735195,0.00014,2]
[328513473,1717473045926,-34626.15577335,0.00014,2]
[328513474,1717473045939,-311812.7804555,0.00014,2]
[328513475,1717473045982,-7269.45860031,0.00014,2]
[328513514,1717473124934,10040.18,0.00024981,60]
[328513550,1717474231869,-367.67329241,0.00013377,2]
[328513551,1717474231881,-337.86497159,0.00013377,2]
[328513552,1717474231890,-407.19896974,0.00013444,2]
[328513553,1717474231899,-1000.0,0.00013445,2]
[328513554,1717474231909,-195.16557682,0.00013798,2]
[328513555,1717474231919,-1888.7295,0.00013799,2]
[328513556,1717474231928,-662.90505783,0.000139,2]
[328513557,1717474231937,-191.32028723,0.000139,2]
[328513558,1717474231946,-467.97312372,0.000139,2]
[328513559,1717474231957,-241.12112116,0.000139,2]
[328513560,1717474231966,-342.95256455,0.000139,2]
[328513561,1717474231975,-735.18097479,0.00013998,2]
[328513562,1717474231984,-265.14137696,0.00013999,2]
[328513563,1717474231995,-2605.21405133,0.00014,2]
[328513564,1717474232007,-453.51,0.00014,2]
[328513565,1717474232935,-2121.37763752,0.00014,2]
[328513566,1717474232947,-466.63551131,0.00014,2]
[328513567,1717474232958,-3172.60248449,0.00014,2]
[328513568,1717474232994,-7211.0,0.00014,2]
[328513569,1717474233005,-4253.28735301,0.00014,2]
[328513570,1717474233015,-3842.55938278,0.00014,2]
[328513571,1717474233026,-102650.14722452,0.00014,2]
[328513572,1717474233037,-43770.41248337,0.00014,2]
[328513573,1717474233048,-608.79,0.00014,2]
[328513574,1717474233059,-361.15,0.00014,2]
[328513575,1717474233157,-277.94262863,0.00014,2]
[328513576,1717474233168,-514.69593955,0.00014,2]
[328513590,1717474237849,-1635.70945244,0.000139,2]
[328513592,1717474237859,-66673.29054758,0.00014,2]
[328513593,1717474237871,-1525.21328915,0.00014,2]
[328513594,1717474237907,-1596.17412447,0.00014,2]
[328513595,1717474238018,-189332.92837312,0.00014,2]
[328513596,1717474238075,-326.94767993,0.00014,2]
[328513597,1717474238132,-846.30282895,0.00014,2]
[328513598,1717474238143,-449.19678092,0.00014,2]
[328513599,1717474238155,-450.89332225,0.00014,2]
[328513600,1717474238167,-272.32466048,0.00014,2]
[328513601,1717474238178,-324.95664198,0.00014,2]
[328513602,1717474238190,-261.10428232,0.00014,2]
[328513603,1717474238202,-311.52431205,0.00014,2]
[328513608,1717474240531,-675.68454917,0.00014,2]
[328513609,1717474240735,-1217.89072931,0.00014,2]
[328513610,1717474240751,-2846.37729792,0.00014,2]
[328513611,1717474241451,-2213.63470269,0.00014,2]
[328513612,1717474241463,-28113.31424191,0.00014,2]
[328513614,1717474243004,-2717.07041305,0.00014,2]
[328513668,1717474246124,-5133.04148565,0.00014,2]
[328513675,1717474330231,9064.046573,0.000308,30]
[328513676,1717474330807,9064.046573,0.000308,30]
[328513677,1717474474929,163.95,0.00012627,2]
[328513681,1717474830976,171.03,0.00012275,2]
[328513698,1717475247304,-6707.114,0.000133,2]
[328513699,1717475247326,-242.886,0.000134,4]
[328513716,1717475433390,-157.114,0.000134,4]
[328513717,1717475433400,-800.0,0.000135,4]
[328513718,1717475433410,-1200.0,0.000136,4]
[328513719,1717475433419,-460.77,0.00013642,2]
[328513720,1717475433428,-350.0,0.00013699,5]
[328513721,1717475433437,-462.90559238,0.000137,5]
[328513729,1717475438053,-1137.09440762,0.000137,5]
[328513730,1717475438239,-2000.0,0.000138,5]
[328513731,1717475438248,-4319.08980251,0.000139,2]
[328513732,1717475438259,-400.0,0.000139,5]
[328513733,1717475438269,-350.24433646,0.000139,2]
[328513734,1717475438279,-628.26353035,0.000139,2]
[328513735,1717475438289,-250.0,0.00013976,2]
[328513736,1717475438298,-499.99,0.00013976,2]
[328513737,1717475438308,-4426.8,0.00013976,2]
[328513738,1717475438317,-1491.04,0.00013976,2]
[328513739,1717475438327,-158.06,0.0001399,2]
[328513740,1717475438336,-692.01,0.0001399,3]
[328513741,1717475438345,-1000.0,0.00013998,2]
[328513742,1717475438354,-328.81213102,0.00013998,2]
[328513743,1717475438363,-156.13544021,0.00013998,2]
[328513744,1717475438372,-221.21077588,0.00013999,2]
[328513745,1717475438382,-8921.67378035,0.00013999,2]
[328513746,1717475438391,-687.22527808,0.00013999,2]
[328513747,1717475438401,-1234.58688571,0.00013999,2]
[328513748,1717475438410,-399.26572389,0.00013999,2]
[328513750,1717475438419,-1913870.63236141,0.00014,2]
[328513751,1717475438434,-1014.9364478,0.00014,2]
[328513752,1717475438445,-1799.78385934,0.00014,2]
[328513753,1717475438460,-3210.79791008,0.00014,2]
[328513754,1717475438470,-600.0,0.00014,2]
[328513758,1717475440888,-944.5813252,0.00014,2]
[328513759,1717475440949,-1555.73494035,0.00014,2]
[328513760,1717475440962,-939.63137312,0.00014,2]
[328513761,1717475440975,-4730.90981496,0.00014,2]
[328513762,1717475441826,-27353.33808669,0.00014,2]
[328513770,1717475443216,-1234.78670039,0.00014,2]
[328513771,1717475443228,-888018.36548164,0.00014,2]
[328513772,1717475443284,-1000.0,0.00014,2]
[328513781,1717475446199,-3396.65,0.00014,2]
[328513782,1717475446257,-1836.13526962,0.00014,2]
[328513783,1717475447026,-1889.12070001,0.00014,2]
[328513784,1717475447039,-5693.54335746,0.00014,2]
[328513785,1717475447051,-5513.52585273,0.00014,2]
[328513787,1717475503044,-264.45323394,0.00013299,2]
[328513788,1717475503066,-734.65032,0.0001386,2]
[328513789,1717475503088,-207.14248839,0.000139,2]
[328513790,1717475503111,-350.24433646,0.000139,2]
[328513791,1717475503132,-469.46704648,0.000139,2]
[328513792,1717475503155,-712.38066418,0.000139,2]
[328513793,1717475503178,-2261.66191055,0.000139,2]
[328513794,1717475503829,-1721.16193274,0.000139,2]
[328513795,1717475503851,-433.50539689,0.00013998,2]
[328513796,1717475503872,-155.36916986,0.00013998,2]
[328513797,1717475503896,-1283.25299983,0.00013998,2]
[328513798,1717475503919,-156.8679506,0.00013998,2]
[328513799,1717475503941,-212.58054006,0.00013998,2]
[328513800,1717475503962,-210.12064252,0.00013998,2]
[328513801,1717475503983,-827.1413675,0.00013998,2]
[328513802,1717475504293,-2271.47605983,0.00013998,2]
[328513803,1717475504315,-155.0864341,0.00013999,2]
[328513804,1717475504337,-2573.43750607,0.00014,2]
[328513805,1717475504640,-5000.0,0.00014,2]
[328513806,1717475505030,-5000.0,0.00014,2]
[328513807,1717475505442,-1229.18531807,0.00013998,2]
[328513808,1717475505464,-159.28920321,0.00013998,2]
[328513809,1717475505487,-3611.52547872,0.00014,2]
[328513810,1717475505839,-5000.0,0.00014,2]
[328513811,1717475506225,-266.6847375,0.00013998,2]
[328513812,1717475506245,-155.28415177,0.00013998,2]
[328513813,1717475506267,-4578.03111073,0.00014,2]
[328513814,1717475507248,-5000.0,0.00014,2]
[328513815,1717475507282,-155.15603242,0.00013998,2]
[328513816,1717475507304,-4844.84396758,0.00014,2]
[328513817,1717475508088,-1066.6874522,0.00013997,2]
[328513818,1717475508110,-3933.3125478,0.00014,2]
[328513819,1717475508698,-237.36772959,0.00013998,2]
[328513820,1717475508719,-539.65648863,0.00013999,2]
[328513821,1717475508743,-4222.97578178,0.00014,2]
[328513822,1717475509266,-5000.0,0.00014,2]
[328513823,1717475510007,-155.48867916,0.00013999,2]
[328513824,1717475510031,-4844.51132084,0.00014,2]
[328513825,1717475518057,-179.32884796,0.00013999,2]
[328513826,1717475518082,-4786.67115204,0.00014,2]
[328513827,1717475540067,-958.97413489,0.00013298,2]
[328513828,1717475540088,-196.828,0.000139,2]
[328513829,1717475540110,-221.89,0.0001399,3]
[328513830,1717475540131,-665.68,0.0001399,3]
[328513831,1717475540152,-1956.62786511,0.00013998,2]
[328513832,1717475540601,-4000.0,0.00013998,2]
[328513833,1717475541210,-4000.0,0.00013998,2]
[328513834,1717475541830,2551.85569516,0.00010499,2]
[328513835,1717475555774,2551.85569516,0.00010499,2]
[328513836,1717475572986,19763.89772466,0.00010499,2]
[328513837,1717475573770,514.20355363,0.00010499,2]
[328513838,1717475577733,155.0,0.00010499,2]
[328513839,1717475578532,1362.61061232,0.00010499,2]
[328513840,1717475580341,362.72006922,0.00010499,2]
[328513841,1717475580636,289.69900753,0.00010499,2]
[328513842,1717475580843,155.0,0.00010499,2]
[328513843,1717475590342,4295.7274355,0.00010499,2]
[328513844,1717475593739,155.0,0.00010499,2]
[328513845,1717475594674,1451.68684841,0.00010499,2]
[328513846,1717475596441,363.34573656,0.00010499,2]
[328513847,1717475596843,155.14555116,0.00010499,2]
[328513848,1717475598637,290.20897724,0.00010499,2]
[328513849,1717475601245,156611.11278699,0.00010499,2]
[328513851,1717475631243,-327.68541616,0.00010497,2]
[328513852,1717475631263,-4755.96512038,0.00010498,2]
[328513853,1717475631283,-87186.47314682,0.00010499,2]
[328513854,1717475673233,99729.87631664,0.00010499,2]
[328513855,1717475749809,2551.85569516,7.874e-05,2]
[328513856,1717475767457,957.32584388,9.974e-05,2]
[328513857,1717475771812,2551.85569516,7.874e-05,2]
[328513858,1717475787480,957.32584388,9.974e-05,2]
[328513859,1717475789810,2551.85569516,7.874e-05,2]
[328513860,1717475795158,289.69900753,7.874e-05,2]
[328513861,1717475795893,947.22670795,7.874e-05,2]
[328513862,1717475796432,155.0,7.874e-05,2]
[328513863,1717475798151,347.37547466,7.874e-05,2]
[328513864,1717475799375,155.0,7.874e-05,2]
[328513865,1717475800853,362.72006922,7.874e-05,2]
[328513866,1717475801489,19763.89772466,7.874e-05,2]
[328513867,1717475803061,1362.61061232,7.874e-05,2]
[328513868,1717475803470,957.32584388,7.48e-05,2]
[328513869,1717475809823,1357.5864503,5.906e-05,2]
[328513870,1717475811896,947.22670795,7.874e-05,2]
[328513871,1717475812312,155.0,7.874e-05,2]
[328513872,1717475813159,290.20897724,7.874e-05,2]
[328513873,1717475814171,347.37547466,7.874e-05,2]
[328513874,1717475815378,155.14555116,7.874e-05,2]
[328513875,1717475815722,19763.89772466,7.874e-05,2]
[328513876,1717475815771,43072.48490057,7.874e-05,2]
[328513877,1717475815812,82479.79528704,7.874e-05,2]
[328513878,1717475816872,362.72006922,7.874e-05,2]
[328513879,1717475817086,1362.61061232,7.874e-05,2]
[328513881,1717475823470,893.21093344,7.48e-05,2]
[328513882,1717475831905,947.22670795,7.874e-05,2]
[328513883,1717475834172,298.9587807,7.874e-05,2]
[328513884,1717475834310,155.0,7.874e-05,2]
[328513885,1717475834866,362.72006922,7.874e-05,2]
[328513886,1717475837078,1362.61061232,7.874e-05,2]
[328513887,1717475837499,9629.66981236,7.874e-05,2]
[328513888,1717475837528,10134.2279123,7.874e-05,2]
[328513889,1717475851911,947.22670795,7.874e-05,2]
[328513890,1717475852321,305.34272508,7.874e-05,2]
[328513891,1717475855496,19050.21353006,7.874e-05,2]
[328513892,1717475856141,500.0,0.00031,120]
[328513893,1717475856876,362.72006922,7.874e-05,2]
[328513894,1717475857074,1362.61061232,7.874e-05,2]
[328513895,1717475871914,947.22670795,7.874e-05,2]
[328513896,1717475872878,273.58628421,7.874e-05,2]
[328513897,1717475873088,1362.61061232,7.874e-05,2]
[328513898,1717475893080,1362.61061232,7.874e-05,2]
[328513899,1717475897912,947.22670795,7.874e-05,2]
[328513900,1717475915092,1362.61061232,7.874e-05,2]
[328513901,1717475915910,711.17768093,7.874e-05,2]
[328513902,1717475933076,1362.61061232,7.874e-05,2]
[328513903,1717475955109,1362.61061232,7.874e-05,2]
[328513904,1717475971084,1362.61061232,7.874e-05,2]
[328513905,1717475989084,1324.44971613,7.874e-05,2]
[328513906,1717475997803,204.09283339,7.874e-05,2]
[328513907,1717475997848,28953.31308595,7.874e-05,2]
[328513908,1717476017156,19763.89772466,7.874e-05,2]
[328513920,1717476105399,-155.0,9.998e-05,2]
[328513921,1717476107182,718.75874464,9.997e-05,2]
[328513924,1717476152591,327.68541616,9.999e-05,2]
[328513925,1717476173819,8951.96252908,9.999e-05,2]
[328513926,1717476174911,155.0,9.999e-05,2]
[328513927,1717476183560,150.5,0.00019708,15]
[328513928,1717476271938,4755.96512038,9.999e-05,2]
[328513930,1717476335913,-300.28687246,0.0001,2]
[328513931,1717476390902,-155.0,0.00010292,2]
[328513932,1717476390926,-663.0,0.00010393,2]
[328513933,1717476390949,-638.95398189,0.00010394,2]
[328513934,1717476390971,-1635.0504,0.00010397,2]
[328513935,1717476390995,-150.0,0.00010498,2]
[328513936,1717476391017,-170.35382184,0.00010499,2]
[328513937,1717476391039,-210.99517928,0.00010499,2]
[328513938,1717476391060,-19241.57678086,0.00010499,2]
[328513939,1717476391082,-163.95,0.00010803,2]
[328513940,1717476391345,-192.0,0.00011548,2]
[328513941,1717476391380,-171.03,0.00012704,2]
[328513942,1717476391403,-150.0,0.00013282,2]
[328513943,1717476391425,-1300.08768272,0.00013298,2]
[328513944,1717476391446,-250.0,0.00013309,2]
[328513945,1717476391467,-2694.37,0.00013589,2]
[328513946,1717476391489,-200.0,0.00013699,2]
[328513947,1717476391512,-250.0,0.00013774,2]
[328513948,1717476391535,-8406.92,0.00013884,2]
[328513949,1717476391555,-1343.582218,0.000139,2]
[328513950,1717476391577,-180.22636236,0.000139,2]
[328513951,1717476391598,-342.447,0.000139,2]
[328513952,1717476391618,-4921.01290473,0.000139,2]
[328513953,1717476391638,-1000.0,0.000139,2]
[328513954,1717476391660,-156.88211601,0.000139,2]
[328513955,1717476391684,-1000.0,0.000139,2]
[328513956,1717476391707,-524.02710198,0.000139,2]
[328513957,1717476391729,-4583.44981218,0.000139,2]
[328513958,1717476391753,-903.49821911,0.000139,2]
[328513959,1717476391774,-1000.0,0.00013928,2]
[328513960,1717476391799,-2684.76399216,0.0001399,2]
[328513961,1717476391821,-443.78,0.0001399,3]
[328513962,1717476391842,-325.40946673,0.00013998,2]
[328513963,1717476391865,-3067.94232697,0.00013998,2]
[328513964,1717476391888,-548.08114131,0.00013998,2]
[328513965,1717476391910,-244.4019039,0.00013998,2]
[328513966,1717476391931,-719.55136828,0.00013998,2]
[328513967,1717476391952,-189.34506203,0.00013998,2]
[328513968,1717476391974,-719.96757642,0.00013998,2]
[328513969,1717476391996,-205.11335806,0.00013998,2]
[328513970,1717476392018,-451.72929639,0.00013998,2]
[328513971,1717476392040,-592.02358249,0.00013999,2]
[328513972,1717476392060,-428.15841657,0.00013999,2]
[328513973,1717476392084,-165040.31892773,0.00014,2]
[328513980,1717476523251,-162.9981871,0.000138,2]
[328513981,1717476523281,-395.00178,0.0001386,2]
[328513982,1717476523325,-2071.3771,0.000139,2]
[328513983,1717476523349,-2168.5273,0.000139,2]
[328513984,1717476523371,-5417.48484354,0.000139,2]
[328513985,1717476523393,-192.4081912,0.00013999,2]
[328513986,1717476523415,-409.54283324,0.00013999,2]
[328513987,1717476523449,-9182.65976492,0.00014,2]
[328514002,1717476632309,-6707.114,0.000138,2]
[328514003,1717476632319,-343.58415581,0.00013899,2]
[328514004,1717476632328,-312.97803098,0.000139,2]
[328514005,1717476632337,-3611.65656236,0.000139,2]
[328514006,1717476632347,-391.7366231,0.00013999,2]
[328514007,1717476632356,-12328.55315069,0.00014,2]
[328514008,1717476632796,-0.27185774,0.00014,2]
[328514009,1717476634004,-29013.2056656,0.00014,2]
[328514010,1717476634119,-6271.32552108,0.00014,2]
[328514028,1717476638355,-2061.50123773,0.00014,2]
[328514029,1717476638368,-1006.28438163,0.00014,2]
[328514030,1717476638510,-785.60005,0.00014,2]
[328514031,1717476638687,-374.70459601,0.00013999,2]
[328514032,1717476638697,-4520.06442834,0.00014,2]
[328514033,1717476638752,-2332.30374178,0.00014,2]
[328514095,1717476641168,-2645.22449628,0.00014,2]
[328514109,1717476643413,-421381.34123607,0.00014,2]
[328514111,1717476643582,-17363.13258883,0.00014,2]
[328514112,1717476643604,-27997.24493536,0.00014,2]
[328514113,1717476643616,-14777.98490078,0.00014,2]
[328514114,1717476643628,-2457.60661689,0.00014,2]
[328514115,1717476643642,-31697.98715591,0.00014,2]
[328514116,1717476643654,-63692.91273578,0.00014,2]
[328514118,1717476644061,-291.45760151,0.00014,2]
[328514119,1717476644073,-653.31270692,0.00014,2]
[328514120,1717476644084,-509.55884938,0.00014,2]
[328514125,1717476646448,-429.85364762,0.00014,2]
[328514126,1717476647027,-1280.36569634,0.00014,2]
[328514127,1717476647123,-1483.1855,0.00014,2]
[328514128,1717476647135,-2523.51388124,0.00014,2]
[328514129,1717476647146,-392.67559406,0.00014,2]
[328514130,1717476647483,-208503.27818015,0.00014,2]
[328514132,1717477003640,179.50575134,0.00013998,7]
[328514133,1717477017491,579.1481793,0.00013998,7]
[328514135,1717477197081,155.0,0.00010499,2]
[328514137,1717477624283,150.5,0.00019698,15]
[328514138,1717477625031,150.5,0.00019688,15]
[328514139,1717477625817,150.5,0.00019678,15]
[328514148,1717477831690,-1270.54491,0.0001386,2]
[328514149,1717477831701,-3318.5922739,0.00013899,2]
[328514150,1717477831714,-131.82488581,0.000139,2]
[328514151,1717477831727,-48.40147655,0.000139,2]
[328514152,1717477831738,-1035.70543741,0.000139,2]
[328514153,1717477831747,-3475.21595872,0.000139,2]
[328514154,1717477831759,-397.33239216,0.000139,2]
[328514155,1717477831771,-997.32022375,0.000139,2]
[328514156,1717477831784,-46.33196918,0.000139,2]
[328514157,1717477831794,-722.01869213,0.000139,2]
[328514158,1717477831805,-208.65202066,0.000139,2]
[328514159,1717477831814,-2936.38607417,0.00013989,2]
[328514160,1717477831842,-37.48487353,0.00013989,2]
[328514161,1717477831853,-5281.07525171,0.00013989,2]
[328514162,1717477831864,-1787.79262242,0.00013989,2]
[328514163,1717477831875,-685.05424735,0.00013989,2]
[328514164,1717477831886,-1330.3497467,0.00013989,2]
[328514165,1717477831897,-258.76851609,0.00013989,2]
[328514166,1717477831958,-7530.34673539,0.00013989,2]
[328514167,1717477831969,-5465.01153974,0.00013989,2]
[328514168,1717477831978,-2703.5113435,0.00013989,2]
[328514169,1717477831987,-879.99,0.0001399,3]
[328514170,1717477831996,-158.07,0.0001399,2]
[328514171,1717477832005,-1902.89753194,0.00013998,2]
[328514172,1717477832014,-9393.35745004,0.00013998,2]
[328514173,1717477832023,-718.75874464,0.00013998,2]
[328514174,1717477832032,-264.09702177,0.00013999,2]
[328514175,1717477832042,-374.70459601,0.00013999,2]
[328514176,1717477832051,-1000.0,0.00013999,5]
[328514177,1717477832061,-266.20377867,0.00013999,5]
[328514178,1717477832070,-8006.45823304,0.00013999,2]
[328514179,1717477832079,-5295.67160475,0.00014,2]
[328514180,1717477832090,-584.79714895,0.00014,2]